fUSD/lending_fUSD_20250115
["ID","MTS","AMOUNT","RATE_DAILY","PERIOD"]
[349042694,1736949035538,-500.0,0.00019688,2]
[349042695,1736949035548,-500.0,0.00019688,2]
[349042696,1736949035557,-500.0,0.00019688,2]
[349042697,1736949035567,-500.0,0.00019688,2]
[349042698,1736949035576,-500.0,0.00019688,2]
[349042699,1736949035586,-500.0,0.00019688,2]
[349042700,1736949035595,-500.0,0.00019688,2]
[349042701,1736949035605,-500.0,0.00019688,2]
[349042702,1736949035615,-500.0,0.00019688,2]
[349042703,1736949035624,-500.0,0.00019688,2]
[349042704,1736949035635,-500.0,0.00019688,2]
[349042705,1736949035645,-500.0,0.00019688,2]
[349042706,1736949035654,-500.0,0.00019688,2]
[349042707,1736949035664,-500.0,0.00019688,2]
[349042708,1736949035673,-500.0,0.00019688,2]
[349042709,1736949035683,-500.0,0.00019688,2]
[349042710,1736949035692,-500.0,0.00019688,2]
[349042711,1736949035701,-505.54258169,0.00019688,2]
[349042712,1736949035712,-156.27,0.00019711,2]
[349042713,1736949035721,-150.0,0.00019885,2]
[349042714,1736949035731,-46002.07206498,0.00019899,2]
[349042715,1736949035741,-319.51,0.00019901,2]
[349042716,1736949035750,-500.0,0.00019901,2]
[349042717,1736949035762,-500.0,0.00019901,2]
[349042718,1736949035771,-500.0,0.00019901,2]
[349042719,1736949035780,-500.0,0.00019901,2]
[349042720,1736949035790,-500.0,0.00019901,2]
[349042721,1736949035801,-500.0,0.00019901,2]
[349042722,1736949035811,-205.81,0.00019901,2]
[349042723,1736949035821,-500.0,0.00019901,2]
[349042724,1736949035831,-500.9536249,0.00019962,2]
[349042725,1736949035840,-500.0,0.00019962,2]
[349042726,1736949035850,-500.0,0.00019962,2]
[349042727,1736949035859,-500.0,0.00019962,2]
[349042728,1736949035868,-500.28180061,0.00019962,2]
[349042729,1736949035878,-500.75349317,0.00019962,2]
[349042730,1736949035887,-501.27158793,0.00019962,2]
[349042731,1736949035896,-413.57109597,0.00019962,2]
[349042732,1736949035905,-300.55557518,0.00019962,2]
[349042733,1736949035914,-250.27672875,0.00019962,2]
[349042734,1736949035923,-500.0,0.00019962,2]
[349042735,1736949035933,-502.10641252,0.00019962,2]
[349042736,1736949035942,-502.71535461,0.00019962,2]
[349042737,1736949035951,-500.0,0.00019962,2]
[349042738,1736949035960,-500.70845695,0.00019962,2]
[349042739,1736949035969,-500.0,0.00019962,2]
[349042740,1736949035979,-501.3614183,0.00019962,2]
[349042741,1736949035988,-501.69360607,0.00019962,2]
[349042742,1736949035997,-502.63392743,0.00019962,2]
[349042743,1736949036006,-8500.0,0.00019962,2]
[349042744,1736949036018,-400.0,0.0001997,2]
[349042745,1736949036027,-600.0,0.0001997,2]
[349042746,1736949036036,-1431.25117755,0.00020003,2]
[349042747,1736949036045,-1200.0,0.00020089,2]
[349042748,1736949036055,-2552.35783661,0.00020103,2]
[349042749,1736949036064,-151.05281359,0.00020175,2]
[349042750,1736949036073,-500.0,0.00020175,2]
[349042751,1736949036082,-500.0,0.00020175,2]
[349042752,1736949036091,-500.0,0.00020175,2]
[349042753,1736949036101,-500.0,0.00020175,2]
[349042754,1736949036111,-500.0,0.00020175,2]
[349042755,1736949036120,-500.0,0.00020175,2]
[349042756,1736949036129,-864.86,0.0002019,2]
[349042757,1736949036141,-1000.0,0.00020225,30]
[349042758,1736949036153,-1000.0,0.00020225,30]
[349042759,1736949036163,-1000.0,0.00020225,60]
[349042760,1736949036173,-1000.0,0.00020225,30]
[349042761,1736949036183,-1000.0,0.00020225,30]
[349042762,1736949036192,-156.27,0.00020244,2]
[349042763,1736949036201,-174.71650596,0.0002041,2]
[349042764,1736949036216,-467.54,0.00020449,2]
[349042765,1736949036228,-500.0,0.00020449,2]
[349042766,1736949036237,-500.0,0.00020449,2]
[349042767,1736949036246,-473.49,0.00020449,2]
[349042768,1736949036255,-500.0,0.00020449,2]
[349042769,1736949036267,-500.0,0.00020449,2]
[349042770,1736949036277,-659.99,0.000207,7]
[349042771,1736949036286,-500.0,0.00020723,2]
[349042772,1736949036295,-500.0,0.00020723,2]
[349042773,1736949036304,-500.0,0.00020723,2]
[349042774,1736949036314,-500.0,0.00020723,2]
[349042775,1736949036323,-1200.0,0.00020758,2]
[349042776,1736949036332,-156.27,0.00020776,2]
[349042777,1736949036342,-500.0,0.00020997,2]
[349042778,1736949036351,-500.0,0.00020997,2]
[349042779,1736949036360,-557.55,0.00020997,2]
[349042780,1736949036369,-606.68,0.00020997,2]
[349042781,1736949036378,-500.0,0.00021271,2]
[349042782,1736949036387,-500.0,0.00021271,2]
[349042783,1736949036397,-500.0,0.00021271,2]
[349042784,1736949036406,-156.27,0.00021309,2]
[349042785,1736949036415,-1431.25117755,0.00021521,2]
[349042786,1736949036424,-500.0,0.00021545,2]
[349042787,1736949036433,-500.0,0.00021545,2]
[349042788,1736949036443,-500.0,0.00021545,2]
[349042789,1736949036452,-2966.89473381,0.00021787,2]
[349042790,1736949036462,-235.75,0.00021819,2]
[349042791,1736949036471,-500.0,0.00021819,2]
[349042792,1736949036480,-500.0,0.00021819,2]
[349042793,1736949036490,-156.27,0.00021842,2]
[349042794,1736949036500,-657.19,0.00021877,2]
[349042795,1736949036511,-150.0,0.00021918,2]
[349042796,1736949036521,-400.0,0.0002197,2]
[349042797,1736949036531,-300.0,0.0002197,2]
[349042798,1736949036540,-637.44,0.00022093,2]
[349042799,1736949036550,-500.0,0.00022093,2]
[349042800,1736949036559,-150.0,0.00022192,2]
[349042801,1736949036569,-297.0,0.0002231,2]
[349042802,1736949036581,-500.0,0.00022367,2]
[349042803,1736949036591,-156.27,0.00022374,2]
[349042804,1736949036601,-864.86,0.00022454,2]
[349042805,1736949036610,-150.0,0.00022466,2]
[349042806,1736949036620,-297.0,0.0002254,2]
[349042807,1736949036629,-623.0,0.00022641,2]
[349042808,1736949036638,-150.0,0.0002274,2]
[349042809,1736949036648,-297.0,0.0002277,2]
[349042810,1736949036657,-156.27,0.00022907,2]
[349042811,1736949036666,-297.0,0.00023,2]
[349042812,1736949036675,-525.94072688,0.00023,2]
[349042813,1736949036685,-150.0,0.00023014,2]
[349042814,1736949036694,-1431.25117755,0.00023038,2]
[349042815,1736949036705,-297.0,0.0002323,2]
[349042816,1736949036714,-46002.07206498,0.00023233,2]
[349042817,1736949036723,-150.0,0.00023288,2]
[349042818,1736949036733,-156.27,0.0002344,2]
[349042819,1736949036742,-297.0,0.0002346,2]
[349042820,1736949036751,-297.0,0.0002369,2]
[349042821,1736949036765,-166.50549518,0.00023736,2]
[349042822,1736949036775,-176.64,0.00023836,2]
[349042823,1736949036785,-156.27,0.00023972,2]
[349042824,1736949036795,-200.0,0.0002411,2]
[349042825,1736949036805,-2966.89473381,0.00024375,2]
[349042826,1736949036816,-153.36,0.000245,31]
[349042827,1736949036826,-153.36,0.000245,31]
[349042828,1736949036836,-153.36,0.000245,31]
[349042829,1736949036846,-153.36,0.000245,31]
[349042830,1736949036855,-153.36,0.000245,31]
[349042831,1736949036864,-153.36,0.000245,31]
[349042832,1736949036875,-153.36,0.000245,31]
[349042833,1736949036885,-153.36,0.000245,31]
[349042834,1736949036895,-156.27,0.00024505,2]
[349042835,1736949036904,-1431.25117755,0.00024555,2]
[349042836,1736949036915,-300.0,0.0002457,2]
[349042837,1736949036924,-400.0,0.0002457,2]
[349042838,1736949036934,-657.19,0.00024611,2]
[349042839,1736949036944,-1000.0,0.00024658,2]
[349042840,1736949036954,-864.86,0.00024718,2]
[349042841,1736949036963,-500.0,0.00024932,2]
[349042842,1736949036973,-17507.04481247,0.00025,3]
[349042843,1736949036983,-150.0,0.00025,2]
[349042844,1736949036992,-156.27,0.00025038,2]
[349042845,1736949037002,-158.208,0.00025153,2]
[349042846,1736949037016,-163.591,0.00025153,2]
[349042847,1736949037026,-1174.0,0.00025153,2]
[349042848,1736949037035,-500.0,0.0002545,120]
[349042849,1736949037045,-156.27,0.00025571,2]
[349042850,1736949037055,-1431.25117755,0.00026072,2]
[349042851,1736949037065,-549.99,0.000261,14]
[349042852,1736949037075,-156.27,0.00026103,2]
[349042853,1736949037084,-2552.35783661,0.00026233,2]
[349042854,1736949037094,-46002.07206498,0.00026566,2]
[349042855,1736949037104,-156.27,0.00026636,2]
[349042856,1736949037113,-153.36,0.000267,31]
[349042857,1736949037124,-153.36,0.000267,31]
[349042858,1736949037134,-153.36,0.000267,31]
[349042859,1736949037144,-153.36,0.000267,31]
[349042860,1736949037153,-153.36,0.000267,31]
[349042861,1736949037163,-153.36,0.000267,31]
[349042862,1736949037173,-500.0,0.00026756,120]
[349042863,1736949037183,-3000.0,0.000268,2]
[349042864,1736949037193,-1000.0,0.00026849,7]
[349042865,1736949037202,-2966.89473381,0.00026962,2]
[349042866,1736949037212,-864.86,0.00026982,2]
[349042867,1736949037223,-156.27,0.00027169,2]
[349042868,1736949037235,-170.32153508,0.000272,44]
[349042869,1736949037244,-170.32153504,0.000272,44]
[349042870,1736949037254,-170.32153504,0.000272,44]
[349042871,1736949037268,-657.19,0.00027346,120]
[349042872,1736949037277,-150.0,0.00027397,120]
[349042873,1736949037287,-4000.0,0.00027397,2]
[349042874,1736949037296,-300.0,0.0002757,2]
[349042875,1736949037305,-400.0,0.0002757,2]
[349042876,1736949037315,-1431.25117755,0.0002759,2]
[349042877,1736949037325,-156.27,0.00027701,2]
[349042878,1736949037334,-150.0,0.00027945,120]
[349042879,1736949037344,-156.27,0.00028234,2]
[349042880,1736949037354,-156.27,0.00028767,2]
[349042881,1736949037363,-153.36,0.00029,31]
[349042882,1736949037372,-153.36,0.00029,31]
[349042883,1736949037382,-153.36,0.00029,31]
[349042884,1736949037391,-153.36,0.00029,31]
[349042885,1736949037401,-153.36,0.00029,31]
[349042886,1736949037410,-153.36,0.00029,31]
[349042887,1736949037420,-1431.25117755,0.00029107,2]
[349042888,1736949037429,-864.86,0.00029246,2]
[349042890,1736949037439,-2966.89473381,0.0002955,2]
[349042891,1736949037448,-3000.0,0.000296,2]
[349042893,1736949037458,-178.594,0.0002989,120]
[349042894,1736949037468,-46002.07206498,0.000299,2]
[349042895,1736949037478,-151.0,0.0003,120]
[349042896,1736949037487,-227.4,0.0003,120]
[349042897,1736949037497,-657.19,0.00030081,120]
[349042898,1736949037506,-500.0,0.00030137,2]
[349042899,1736949037522,-1431.25117755,0.00030624,2]
[349042900,1736949037531,-227.4,0.00030849,120]
[349042901,1736949037541,-500.0,0.000309,7]
[349042902,1736949037550,-500.0,0.000309,7]
[349042903,1736949037559,-500.0,0.000309,7]
[349042904,1736949037568,-500.0,0.000309,7]
[349042905,1736949037578,-500.0,0.000309,7]
[349042906,1736949037587,-500.0,0.000309,7]
[349042907,1736949037596,-500.0,0.000309,7]
[349042908,1736949037606,-500.0,0.000309,7]
[349042909,1736949037615,-500.0,0.000309,7]
[349042910,1736949037625,-500.0,0.000309,7]
[349042911,1736949037634,-594.95,0.000309,7]
[349042912,1736949037644,-151.0,0.00030986,120]
[349042913,1736949037654,-153.36,0.000312,31]
[349042914,1736949037664,-153.36,0.000312,31]
[349042915,1736949037674,-153.36,0.000312,31]
[349042916,1736949037683,-153.36,0.000312,31]
[349042917,1736949037693,-153.36,0.000312,31]
[349042918,1736949037703,-153.36,0.000312,31]
[349042919,1736949037712,-500.0,0.00031292,120]
[349042920,1736949037721,-864.86,0.0003151,2]
[349042921,1736949037731,-227.4,0.00031699,120]
[349042922,1736949037740,-339.0,0.000319,2]
[349042923,1736949037750,-270.0,0.000319,2]
[349042924,1736949037759,-270.0,0.000319,2]
[349042925,1736949037772,-339.0,0.000319,2]
[349042926,1736949037782,-1000.0,0.000319,12]
[349042927,1736949037791,-1000.0,0.000319,12]
[349042928,1736949037802,-1000.0,0.000319,12]
[349042929,1736949037812,-1000.0,0.000319,12]
[349042930,1736949037821,-1000.0,0.000319,12]
[349042931,1736949037831,-1000.0,0.000319,12]
[349042932,1736949037840,-1000.0,0.000319,12]
[349042933,1736949037849,-1000.0,0.000319,12]
[349042934,1736949037859,-1000.0,0.000319,12]
[349042935,1736949037868,-1000.0,0.000319,12]
[349042936,1736949037877,-151.0,0.00031973,120]
[349042937,1736949037887,-999.0,0.00031999,2]
[349042938,1736949037896,-2966.89473381,0.00032137,2]
[349042939,1736949037906,-1431.25117755,0.00032141,2]
[349042940,1736949037916,-3000.0,0.000323,2]
[349042941,1736949037926,-2552.35783661,0.00032364,4]
[349042942,1736949037936,-1000.0,0.000324,2]
[349042943,1736949037945,-500.0,0.00032547,2]
[349042944,1736949037955,-500.0,0.00032547,2]
[349042945,1736949037965,-500.0,0.00032547,2]
[349042946,1736949037974,-524.0,0.00032547,2]
[349042948,1736949037983,-500.0,0.00032547,2]
[349042949,1736949037992,-500.0,0.00032547,2]
[349042951,1736949038001,-500.0,0.00032547,2]
[349042953,1736949038015,-500.0,0.00032547,2]
[349042955,1736949038023,-932.0,0.00032547,2]
[349042957,1736949038032,-227.4,0.00032548,120]
[349042959,1736949038042,-657.19,0.00032815,120]
[349042961,1736949038051,-500.0,0.00032876,7]
[349042963,1736949038060,-500.0,0.00032876,7]
[349042965,1736949038070,-500.0,0.00032876,7]
[349042967,1736949038080,-500.0,0.00032876,7]
[349042969,1736949038089,-357.54783271,0.00032876,7]
[349042971,1736949038099,-500.0,0.00032876,7]
[349042973,1736949038108,-500.0,0.00032876,7]
[349042975,1736949038117,-500.0,0.00032876,7]
[349042977,1736949038127,-500.0,0.00032876,7]
[349042979,1736949038137,-500.0,0.00032876,7]
[349042982,1736949038147,-500.0,0.00032876,7]
[349042986,1736949038156,-500.0,0.00032876,7]
[349042989,1736949038166,-500.0,0.00032876,7]
[349042992,1736949038175,-500.0,0.00032876,7]
[349042995,1736949038185,-500.0,0.00032876,7]
[349042998,1736949038194,-500.0,0.00032876,7]
[349043001,1736949038204,-500.0,0.00032876,7]
[349043004,1736949038214,-500.0,0.00032876,7]
[349043007,1736949038229,-500.0,0.00032876,7]
[349043008,1736949038238,-500.0,0.00032876,7]
[349043009,1736949038247,-500.0,0.00032876,7]
[349043011,1736949038256,-500.0,0.00032876,7]
[349043013,1736949038269,-500.0,0.00032876,7]
[349043014,1736949038278,-500.0,0.00032876,7]
[349043015,1736949038288,-500.0,0.00032876,7]
[349043016,1736949038297,-500.0,0.00032876,7]
[349043017,1736949038306,-500.0,0.00032876,7]
[349043018,1736949038316,-500.0,0.00032876,7]
[349043019,1736949038325,-500.0,0.00032876,7]
[349043020,1736949038334,-500.0,0.00032876,7]
[349043021,1736949038341,-500.0,0.00032876,7]
[349043022,1736949038350,-500.0,0.00032876,7]
[349043023,1736949038360,-500.0,0.00032876,7]
[349043024,1736949038370,-500.0,0.00032876,7]
[349043025,1736949038379,-500.0,0.00032876,7]
[349043026,1736949038389,-500.0,0.00032876,7]
[349043027,1736949038398,-502.06370973,0.00032876,7]
[349043028,1736949038408,-500.0,0.00032876,7]
[349043029,1736949038417,-500.0,0.00032876,7]
[349043030,1736949038427,-500.0,0.00032876,7]
[349043031,1736949038436,-500.0,0.00032876,7]
[349043032,1736949038445,-500.0,0.00032876,7]
[349043033,1736949038455,-500.0,0.00032876,7]
[349043034,1736949038464,-501.86969843,0.00032876,3]
[349043035,1736949038474,-500.0,0.00032876,7]
[349043036,1736949038484,-500.0,0.00032876,7]
[349043037,1736949038493,-500.0,0.00032876,7]
[349043038,1736949038503,-500.0,0.00032876,7]
[349043039,1736949038516,-500.0,0.00032876,7]
[349043040,1736949038525,-500.0,0.00032876,7]
[349043041,1736949038535,-500.0,0.00032876,7]
[349043042,1736949038545,-500.0,0.00032876,7]
[349043043,1736949038555,-500.0,0.00032876,7]
[349043044,1736949038565,-500.0,0.00032876,7]
[349043045,1736949038574,-500.0,0.00032876,7]
[349043046,1736949038584,-500.0,0.00032876,7]
[349043047,1736949038593,-407.55493106,0.00032876,7]
[349043048,1736949038603,-500.0,0.00032876,7]
[349043049,1736949038613,-500.0,0.00032876,7]
[349043050,1736949038622,-500.0,0.00032876,7]
[349043051,1736949038631,-500.0,0.00032876,7]
[349043052,1736949038641,-500.0,0.00032876,7]
[349043053,1736949038651,-500.0,0.00032876,7]
[349043054,1736949038661,-500.0,0.00032876,7]
[349043055,1736949038671,-500.0,0.00032876,7]
[349043056,1736949038681,-273.874593,0.00032876,7]
[349043057,1736949038691,-500.0,0.00032876,7]
[349043058,1736949038700,-500.0,0.00032876,7]
[349043059,1736949038710,-500.0,0.00032876,7]
[349043060,1736949038719,-500.0,0.00032876,7]
[349043061,1736949038729,-500.0,0.00032876,7]
[349043062,1736949038739,-500.0,0.00032876,7]
[349043063,1736949038750,-500.0,0.00032876,7]
[349043064,1736949038918,-500.0,0.00032876,7]
[349043065,1736949038928,-500.0,0.00032876,7]
[349043066,1736949038937,-500.0,0.00032876,7]
[349043067,1736949038947,-157.567481,0.00032876,7]
[349043068,1736949038957,-500.0,0.00032876,7]
[349043069,1736949038966,-500.0,0.00032876,7]
[349043070,1736949038976,-500.0,0.00032876,7]
[349043071,1736949038986,-500.0,0.00032876,7]
[349043072,1736949038996,-500.0,0.00032876,7]
[349043073,1736949039006,-500.0,0.00032876,7]
[349043074,1736949039019,-253.46754521,0.00032876,7]
[349043075,1736949039029,-500.0,0.00032876,7]
[349043076,1736949039039,-500.0,0.00032876,7]
[349043077,1736949039049,-171.069803,0.00032876,7]
[349043078,1736949039059,-500.0,0.00032876,7]
[349043079,1736949039069,-500.0,0.00032876,7]
[349043080,1736949039080,-500.0,0.00032876,7]
[349043081,1736949039091,-500.0,0.00032876,7]
[349043082,1736949039101,-500.0,0.00032876,7]
[349043083,1736949039111,-500.0,0.00032876,7]
[349043084,1736949039121,-500.0,0.00032876,7]
[349043085,1736949039131,-500.0,0.00032876,7]
[349043086,1736949039140,-500.0,0.00032876,7]
[349043087,1736949039154,-500.0,0.00032876,7]
[349043088,1736949039164,-500.0,0.00032876,7]
[349043089,1736949039173,-500.0,0.00032876,7]
[349043090,1736949039183,-500.0,0.00032876,7]
[349043091,1736949039192,-500.0,0.00032876,7]
[349043092,1736949039202,-500.0,0.00032876,7]
[349043093,1736949039212,-500.0,0.00032876,7]
[349043094,1736949039222,-500.0,0.00032876,7]
[349043095,1736949039235,-175.66420089,0.00032876,7]
[349043096,1736949039243,-500.0,0.00032876,7]
[349043097,1736949039254,-500.0,0.00032876,7]
[349043098,1736949039267,-500.0,0.00032876,7]
[349043099,1736949039277,-500.0,0.00032876,7]
[349043100,1736949039289,-500.0,0.00032876,7]
[349043101,1736949039298,-500.0,0.00032876,7]
[349043102,1736949039310,-509.89847375,0.00032876,7]
[349043103,1736949039320,-500.0,0.00032876,7]
[349043104,1736949039330,-873.59,0.00032876,7]
[349043105,1736949039340,-500.0,0.00032876,7]
[349043106,1736949039349,-500.0,0.00032876,7]
[349043107,1736949039359,-500.0,0.00032876,7]
[349043108,1736949039368,-507.99732262,0.00032876,7]
[349043109,1736949039378,-500.0,0.00032876,7]
[349043111,1736949039388,-500.0,0.00032876,7]
[349043112,1736949039397,-500.0,0.00032876,7]
[349043113,1736949039407,-500.0,0.00032876,7]
[349043115,1736949039417,-500.0,0.00032876,7]
[349043116,1736949039426,-500.0,0.00032876,7]
[349043117,1736949039436,-500.0,0.00032876,7]
[349043118,1736949039445,-500.0,0.00032876,7]
[349043119,1736949039455,-500.0,0.00032876,7]
[349043120,1736949039465,-500.0,0.00032876,7]
[349043121,1736949039475,-500.0,0.00032876,7]
[349043122,1736949039486,-500.0,0.00032876,7]
[349043123,1736949039496,-500.0,0.00032876,7]
[349043124,1736949039506,-500.0,0.00032876,7]
[349043125,1736949039519,-500.0,0.00032876,7]
[349043126,1736949039529,-500.0,0.00032876,2]
[349043128,1736949039539,-500.0,0.00032876,7]
[349043129,1736949039549,-500.0,0.00032876,7]
[349043131,1736949039559,-500.0,0.00032876,7]
[349043132,1736949039568,-233.57819081,0.00032876,7]
[349043133,1736949039578,-500.0,0.00032876,7]
[349043134,1736949039588,-500.0,0.00032876,7]
[349043135,1736949039598,-189.16151682,0.00032876,7]
[349043143,1736949039736,-310.83848318,0.00032876,7]
[349043145,1736949039745,-500.0,0.00032876,7]
[349043147,1736949039755,-500.0,0.00032876,7]
[349043149,1736949039769,-500.0,0.00032876,7]
[349043150,1736949039778,-500.0,0.00032876,7]
[349043151,1736949039788,-500.0,0.00032876,7]
[349043152,1736949039798,-500.0,0.00032876,7]
[349043153,1736949039807,-500.0,0.00032876,7]
[349043154,1736949039817,-500.0,0.00032876,7]
[349043155,1736949039826,-500.0,0.00032876,7]
[349043156,1736949039836,-500.0,0.00032876,7]
[349043157,1736949039845,-500.0,0.00032876,7]
[349043158,1736949039855,-500.0,0.00032876,7]
[349043159,1736949039864,-500.0,0.00032876,7]
[349043160,1736949039874,-500.0,0.00032876,7]
[349043161,1736949039883,-500.0,0.00032876,7]
[349043162,1736949039893,-500.0,0.00032876,7]
[349043163,1736949039903,-500.0,0.00032876,7]
[349043164,1736949039913,-500.0,0.00032876,7]
[349043165,1736949039923,-500.0,0.00032876,7]
[349043166,1736949039933,-500.0,0.00032876,7]
[349043167,1736949039942,-500.0,0.00032876,7]
[349043168,1736949039951,-500.0,0.00032876,7]
[349043169,1736949039961,-500.0,0.00032876,7]
[349043170,1736949039971,-500.0,0.00032876,7]
[349043171,1736949039981,-500.0,0.00032876,7]
[349043172,1736949039991,-245.34354752,0.00032876,7]
[349043173,1736949040001,-500.0,0.00032876,7]
[349043174,1736949040011,-500.0,0.00032876,7]
[349043175,1736949040022,-500.0,0.00032876,7]
[349043176,1736949040032,-500.0,0.00032876,7]
[349043177,1736949040041,-552.13482743,0.00032876,7]
[349043178,1736949040051,-500.0,0.00032876,7]
[349043179,1736949040060,-500.0,0.00032876,7]
[349043180,1736949040070,-500.0,0.00032876,7]
[349043181,1736949040080,-500.0,0.00032876,7]
[349043182,1736949040089,-500.0,0.00032876,7]
[349043183,1736949040098,-500.0,0.00032876,7]
[349043184,1736949040108,-500.0,0.00032876,7]
[349043185,1736949040117,-500.0,0.00032876,7]
[349043186,1736949040127,-500.0,0.00032876,7]
[349043187,1736949040136,-500.0,0.00032876,7]
[349043188,1736949040146,-363.87385542,0.00032876,7]
[349043189,1736949040160,-250.43614458,0.00032876,7]
[349043190,1736949040170,-337.48620953,0.00032876,7]
[349043191,1736949040179,-500.0,0.00032876,7]
[349043192,1736949040189,-500.0,0.00032876,7]
[349043193,1736949040199,-500.0,0.00032876,7]
[349043194,1736949040208,-500.0,0.00032876,7]
[349043195,1736949040217,-500.0,0.00032876,7]
[349043196,1736949040227,-581.69,0.00032876,7]
[349043197,1736949040241,-500.0,0.00032876,7]
[349043198,1736949040251,-500.0,0.00032876,7]
[349043199,1736949040261,-500.0,0.00032876,7]
[349043200,1736949040273,-500.0,0.00032876,7]
[349043201,1736949040283,-500.0,0.00032876,7]
[349043202,1736949040293,-500.0,0.00032876,7]
[349043203,1736949040303,-500.0,0.00032876,7]
[349043204,1736949040313,-500.0,0.00032876,7]
[349043205,1736949040325,-500.0,0.00032876,7]
[349043206,1736949040334,-500.0,0.00032876,7]
[349043207,1736949040344,-500.0,0.00032876,7]
[349043208,1736949040353,-500.0,0.00032876,7]
[349043209,1736949040363,-500.0,0.00032876,7]
[349043210,1736949040373,-500.0,0.00032876,7]
[349043211,1736949040383,-500.0,0.00032876,7]
[349043212,1736949040392,-500.0,0.00032876,7]
[349043213,1736949040402,-506.30111724,0.00032876,7]
[349043214,1736949040412,-500.0,0.00032876,7]
[349043215,1736949040422,-500.0,0.00032876,7]
[349043216,1736949040431,-500.0,0.00032876,7]
[349043217,1736949040441,-500.0,0.00032876,7]
[349043218,1736949040450,-500.0,0.00032876,7]
[349043219,1736949040460,-247.83168886,0.00032876,7]
[349043220,1736949040469,-500.0,0.00032876,7]
[349043221,1736949040478,-500.0,0.00032876,7]
[349043222,1736949040488,-500.0,0.00032876,7]
[349043223,1736949040497,-500.0,0.00032876,7]
[349043224,1736949040507,-500.0,0.00032876,7]
[349043225,1736949040519,-500.0,0.00032876,7]
[349043226,1736949040528,-500.0,0.00032876,7]
[349043227,1736949040539,-504.31475219,0.00032876,7]
[349043228,1736949040549,-500.0,0.00032876,7]
[349043229,1736949040559,-500.0,0.00032876,7]
[349043230,1736949040568,-502.56207721,0.00032876,7]
[349043231,1736949040578,-338.26568075,0.00032876,7]
[349043232,1736949040588,-500.0,0.00032876,7]
[349043233,1736949040598,-643.20391247,0.00032876,7]
[349043234,1736949040608,-500.0,0.00032876,7]
[349043235,1736949040618,-500.0,0.00032876,7]
[349043236,1736949040629,-500.0,0.00032876,7]
[349043237,1736949040639,-500.0,0.00032876,7]
[349043238,1736949040648,-500.0,0.00032876,7]
[349043239,1736949040658,-500.0,0.00032876,7]
[349043240,1736949040668,-500.0,0.00032876,7]
[349043241,1736949040677,-500.0,0.00032876,7]
[349043242,1736949040687,-500.0,0.00032876,7]
[349043243,1736949040696,-500.0,0.00032876,7]
[349043244,1736949040705,-500.0,0.00032876,7]
[349043245,1736949040714,-500.0,0.00032876,7]
[349043246,1736949040723,-500.0,0.00032876,7]